Workbook

Sheet Prognose
A1: Finanzhilfeprognose für allgemein bildende Schulen in freier Trägerschaft für das Schuljahr 2025/2026
A2: Auf dieser Seite können Sie die Höhe des Grundbetrages, die maximale Höhe des Erhöhungsbetrages und damit die maximale Höhe der Finanzhilfe für Ihre Schule prognostizieren. Erforderlich ist dazu nur, dass Sie die entsprechende Schulform auswählen, sowie die Angaben zur Zusatzversorgung und Altersvorsorge für von der Rentenversicherung befreite Lehrkräfte angeben. Anschließend erfassen Sie bitte unter Abschnitt I und Abschnitt II die Daten Ihrer Schule in den grün hinterlegten Feldern.
A5: Wählen Sie bitte zunächst für Ihre Schule die Schulform bzw. -art aus | D5: (noch keine Auswahl) | L5: =IF(SF>6,"","Stand:") -> Stand: | M5: =IF(SF<=6,"","Stand:") ->  | N5: 2025-07-01
A7: Leisten Sie für Ihre Lehrkräfte bzw. Ihr Zusatzpersonal eine Zusatzversorgung? | D7: nein
A9: Leisten Sie Beiträge zur Altersvorsorge für von der Rentenversicherung befreite Lehrkräfte? | D9: nein
A11: Abschnitt I (Eingabefelder)
B12: =IF(SF=1,"Sie haben bisher keine Schulfom ausgewählt!","Schulform, -gliederung, oder -zweig") -> Sie haben bisher keine Schulfom ausgewählt! | C12: =IF(SF=1,"","Zahl SuS") ->  | D12: =IF(SF=1,"","Ist Stunden LK") ->  | E12: =IF(OR(SF=7,SF=8),"Ist Stunden PM","") ->  | F12: =IF(SF=1,"","Tatsächliche Schülerstunden LK") ->  | G12: =IF(OR(SF=7,SF=8),"Tatsächliche Schülerstunden PM","") ->  | H12: =IF(SF=1,"","Nominelle Schülerstunden LK") ->  | I12: =IF(OR(SF=7,SF=8),"Nominelle Schülerstunden PM","") ->  | J12: =IF(SF=1,"","Maßgebliche Schülerstunden LK") ->  | K12: =IF(OR(SF=7,SF=8),"Maßgebliche Schülerstunden PM","") ->  | L12: =IF(SF=1,"","Stundensatz LK") ->  | M12: =IF(OR(SF=7,SF=8),"Stundensatz PM","") ->  | N12: =IF(SF=1,"","Grundbetrag Finanzhilfe") -> 
A13: 1.1 | B13: =IF(OR(SF=2,SF=3),"Grundschule",IF(OR(SF=4,SF=6,SF=7),"Primar",IF(SF=5,"Sek I",IF(SF=8,"FöS LE","")))) ->  | F13: =IF(B13="","",IF(C13>0,D13/C13,0)) ->  | G13: =IF(SF=8,IF(C13>0,E13/C13,0),"") ->  | H13: =IF(OR(SF=2,SF=3,SF=4,SF=6,SF=7),LGS,IF(SF=5,LGymSekI,IF(SF=8,LLE,""))) ->  | J13: =IF(B13="","",IF(H13<F13,H13,F13)) ->  | L13: =IF(OR(SF=2,SF=3,SF=4,SF=6,SF=7),SatzGS,IF(SF=5,SatzGym,IF(SF=8,SatzFöS,""))) ->  | N13: =IF(B13="","",IF(AND(C13>0,K13<>""),L13*J13*C13+M13*K13*C13,IF(AND(C13>0,K13=""),L13*J13*C13,0))) -> 
A14: 1.2 | B14: =IF(OR(SF=4,SF=6,SF=7),"Sek I",IF(SF=2,"Hauptschule",IF(SF=3,"Oberschule",IF(SF=5,"Sek II",IF(SF=8,"FöS ESE",""))))) ->  | F14: =IF(B14="","",IF(C14>0,D14/C14,0)) ->  | G14: =IF(SF=8,IF(C14>0,E14/C14,0),"") ->  | H14: =IF(SF=2,LHS,IF(SF=3,LObS,IF(SF=4,LGesSSekI,IF(SF=5,LGymSekII,IF(OR(SF=6,SF=7),LGymSekI,IF(SF=8,LESE,"")))))) ->  | I14: =IF(SF=8,PMESE,"") ->  | J14: =IF(B14="","",IF(H14<F14,H14,F14)) ->  | K14: =IF(SF=8,IF(I14<G14,I14,G14),"") ->  | L14: =IF(SF=2,SatzHS,IF(SF=3,SatzObS,IF(SF=4,SatzGes,IF(OR(SF=5,SF=6,SF=7),SatzGym,IF(SF=8,SatzFöS,""))))) ->  | M14: =IF(SF=8,SatzPM,"") -> 
A15: 1.3 | B15: =IF(OR(SF=4,SF=6,SF=7),"Sek II",IF(SF=2,"Realschule",IF(SF=8,"FöS GE",""))) ->  | G15: =IF(SF=8,IF(C15>0,E15/C15,0),"") ->  | H15: =IF(OR(SF=6,SF=7),LGymSekII,IF(SF=2,LRS,IF(SF=4,LGesSSekII,IF(SF=8,LGE,"")))) ->  | I15: =IF(SF=8,PMGE,"") ->  | K15: =IF(SF=8,IF(I15<G15,I15,G15),"") ->  | L15: =IF(OR(SF=6,SF=7),SatzGym,IF(SF=2,SatzRS,IF(SF=4,SatzGes,IF(SF=8,SatzFöS,"")))) ->  | M15: =IF(SF=8,SatzPM,"") -> 
A16: 1.4 | B16: =IF(SF=7,"FöS LE",IF(SF=8,"FöS KME","")) ->  | G16: =IF(OR(SF=7,SF=8),IF(C16>0,E16/C16,0),"") ->  | H16: =IF(SF=7,LLE,IF(SF=8,LKME,"")) ->  | I16: =IF(SF=8,PMKME,"") ->  | K16: =IF(SF=8,IF(I16<G16,I16,G16),"") ->  | L16: =IF(OR(SF=7,SF=8),SatzFöS,"") ->  | M16: =IF(SF=8,SatzPM,"") ->  | N16: =IF(B16="","",IF(AND(C16>0,K16<>""),L16*J16*C16+M16*K16*C16,IF(AND(C16>0,K16=""),L16*J16*C16,0))) -> 
A17: 1.5 | B17: =IF(SF=7,"FöS ESE",IF(SF=8,"FöS SP","")) ->  | G17: =IF(OR(SF=7,SF=8),IF(C17>0,E17/C17,0),"") ->  | H17: =IF(SF=7,LESE,IF(SF=8,LSP,"")) ->  | I17: =IF(SF=7,PMESE,"") ->  | K17: =IF(SF=7,IF(I17<G17,I17,G17),"") ->  | L17: =IF(OR(SF=7,SF=8),SatzFöS,"") ->  | M17: =IF(SF=7,SatzPM,"") ->  | N17: =IF(B17="","",IF(AND(C17>0,K17<>""),L17*J17*C17+M17*K17*C17,IF(AND(C17>0,K17=""),L17*J17*C17,0))) -> 
A18: 1.6 | B18: =IF(SF=7,"FöS GE",IF(SF=8,"FöS SE","")) ->  | G18: =IF(OR(SF=7,SF=8),IF(C18>0,E18/C18,0),"") ->  | H18: =IF(SF=7,LGE,IF(SF=8,LSE,"")) ->  | I18: =IF(SF=7,PMGE,IF(SF=8,PMSE,"")) ->  | K18: =IF(OR(SF=7,SF=8),IF(I18<G18,I18,G18),"") ->  | L18: =IF(OR(SF=7,SF=8),SatzFöS,"") ->  | M18: =IF(OR(SF=7,SF=8),SatzPM,"") -> 
A19: 1.7 | B19: =IF(SF=7,"FöS KME",IF(SF=8,"FöS HÖ","")) ->  | G19: =IF(OR(SF=7,SF=8),IF(C19>0,E19/C19,0),"") ->  | H19: =IF(SF=7,LKME,IF(SF=8,LHÖ,"")) ->  | I19: =IF(SF=7,PMKME,"") ->  | K19: =IF(SF=7,IF(I19<G19,I19,G19),"") ->  | L19: =IF(OR(SF=7,SF=8),SatzFöS,"") ->  | M19: =IF(SF=7,SatzPM,"") -> 
A20: =IF(OR(SF=2,SF=4,SF=6),"1.4",IF(OR(SF=3,SF=5),"1.3",IF(SF=1,"","1.8"))) ->  | L20: =IF(SF=1,"",IF(SF<=6,"Zwischen- ergebniss:","")) ->  | M20: =IF(SF=1,"",IF(SF>5,"Zwischen- ergebnis:","")) ->  | N20: =IF(SF=1,"",SUM(N13:N19)) -> 
A22: Abschnitt II (Erhöhngsbetrag)
B23: =IF(AND(ZV=1,rDB=1),"Sie leisten keine Zusatzversorgung und/oder Altersvorsorge für von der Rentenversicherung befreite Lehrkräfte!","") -> Sie leisten keine Zusatzversorgung und/oder Altersvorsorge für von der Rentenversicherung befreite Lehrkräfte! | H23: =IF(B23="","Betrag","") ->  | I23: =IF(SF>6,(IF(B23="","Max. mögl. Erhöhungsbetrag § 3 Abs. 2 FinHVO","")),"") ->  | J23: =IF(SF<=6,(IF(B23="","Max. möglicher Erhöhungsbetrag § 3 Abs. 2 FinHVO","")),"") -> 
A24: 2.1 | B24: =IF(ZV=2,"Summe der Bruttogehälter aller Beschäfigten, für die die Erhöhungsbeträge nach § 3 Abs. 2 Nr. 1 FinHVO (Zusatzversorgung) beantragt werden, unabhängig von der Schulform","") ->  | I24: =IF(SF>6,H24*6.9/100,"") ->  | J24: =IF(SF<6,H24*6.9/100*0.8,"") -> 0.00 €
A25: =IF(ZV_J_N="nein","2.1","2.2") -> 2.1 | B25: =IF(rDB=2,"Summe der ruhegehaltsfähigen Dienstbezüge gem. § 3 Abs. 2 Nr. 2 FinHVO, unabhängig von der Schulform","") ->  | I25: =IF(SF>6,H25*0.3,"") ->  | J25: =IF(SF<=6,H25*0.3,"") -> 0.00 €
F26: =IF(AND(ZV=1,rDB=1),"",IF(SF<=6,"Zwischen- ergebnis:","")) ->  | G26: =IF(AND(ZV=1,rDB=1),"",IF(SF>6,"Zwischen- ergebnis:","")) ->  | H26: =IF(AND(ZV=1,rDB=1),"",SUM(H24:H25)) ->  | I26: =IF(AND(ZV=1,rDB=1),"",IF(SF>6,SUM(I24:I25),"")) ->  | J26: =IF(AND(ZV=1,rDB=1),"",IF(SF<=6,SUM(J24:J25),"")) -> 
A28: Abschnitt III (Ergebnisse)
A29: 3.1 | B29: Grundbetrag Finanzhilfe | D29: =N20 -> 
A30: =IF(SF=1,"3.1","3.2") -> 3.1 | B30: Maximal möglicher Erhöhungsbetrag § 3 Abs. 2 Nr. 1 FinHVO | D30: =IF(SF>6,I24,J24) -> 0.00 €
A31: =IF(AND(SF=1,ZV=1),"3.1",IF(AND(SF=1,ZV=2),"3.2","3.3")) -> 3.1 | B31: Maximal möglicher Erhöhungsbetrag § 3 Abs. 2 Nr. 2 FinHVO | D31: =IF(SF>6,I25,J25) -> 0.00 €
A32: =IF(AND(ZV_J_N="nein",rDB_J_N="nein"),"3.2",IF(AND(ZV_J_N="nein",rDB_J_N,"ja"),"3.3",IF(AND(ZV_J_N="ja",rDB_J_N,"nein"),"3.3","3.4"))) -> 3.2 | B32: Maximal mögliche Finanzhilfe | D32: =SUM(D29:D31) -> 0.00 €
B33: =IF(SF<>1,"",IF(AND(SF=1,ZV<>1),"Es fehlt noch an der Auswanhl der Schulform um ein Ergebnis anzeigen zu konnen!",IF(AND(SF=1,rDB<>1),"Es fehlt noch an der Auswanhl der Schulform um ein Ergebnis anzeigen zu konnen!","Es gibt nichts zu berechnen und somit auch kein Ergebnis!"))) -> Es gibt nichts zu berechnen und somit auch kein Ergebnis!

Sheet Berechnungsparameter
A1: Abschnitt IV (Nachrichtlich - Berechnungparameter)
A2: 4.1 | B2: Lehrkräfte
M3: Parameter LK
B4: Schulform | C4: Entgeltgruppe | D4: Jahresentgelt - 6,9 % ZVL + 0,8 % Sachkosten | E4: Faktor F | F4: Regelstundenzahl | G4: Faktor AS | H4: Faktor S | I4: Abschlag | J4: Stundensatz | K4: Stundensatz kaufmännisch gerundet | M4: Entgeltgruppe | N4: Durchsnittliches Jahresentgelt | O4: - 6,9 % Zusatzversorgung | P4: + 0,8 % personalbezogene Sachkosten | R4: Rentenversicherungspflichtige Entgelt
B5: Grundschule | C5: E 13 | D5: =P5 -> 87,716.78 | E5: 1.1 | F5: 28 | G5: 1.08 | H5: 1.167 | I5: 0.8 | J5: =(D5*E5/F5)*G5*H$5*I$5 -> 3,474.5770 | K5: =J5 -> 3,474.58 | M5: E 13 | N5: 91,985.00 | O5: =N5-R5*6.9/100 -> 87,020.62 | P5: =O5*(100+0.8)/100 -> 87,716.78 | R5: =N5/127.85*100 -> 71,947.59 | S5: 100.00% | T5: =T8/S8*S5 -> 71,947.59 € | U5: Rentenvers.pflicht. EG
B6: Hauptschule | C6: E 13 | D6: 87,716.78 | E6: 1.1 | F6: 27.5 | G6: 1.07 | J6: 3,504.9941 | K6: 3,504.99 | M6: E 13 | N6: 91,985.00 | O6: =N6-R6*6.9/100 -> 87,020.62 | P6: 87,716.78 | R6: =N6/127.85*100 -> 71,947.59 | S6: 20.95% | T6: =T8/S8*S6 -> 15,073.02 € | U6: Sozialvers.Lesitungen
B7: Realschule | C7: E 13 | D7: 87,716.78 | E7: 1.1 | F7: 26.5 | G7: 1.07 | J7: 3,637.2581 | K7: 3,637.26 | M7: E 13 | N7: 91,985.00 | O7: 87,020.62 | P7: 87,716.78 | R7: 71,947.59 | S7: 6.90% | T7: =T8/S8*S7 -> 4,964.38 € | U7: ZVL
B8: Oberschule | C8: E 13 | D8: 87,716.78 | E8: 1.1 | F8: 25.5 | G8: 1.07 | J8: 3,779.8956 | K8: 3,779.90 | M8: E 13 | N8: 91,985.00 | O8: 87,020.62 | P8: 87,716.78 | R8: 71,947.59 | S8: =SUM(S5:S7) -> 127.85% | T8: 91,985.00 € | U8: =SUM(T5:T7) -> 91985
B9: Gesamtschule | C9: E 13 | D9: 87,716.78 | E9: 1.15 | F9: 24.5 | G9: 1.08 | J9: 4,151.4426 | K9: 4,151.44 | M9: E 13 | N9: 91,985.00 | O9: 87,020.62 | P9: 87,716.78 | R9: 71,947.59
B10: Gymnasium | C10: E 13 | D10: 87,716.78 | E10: 1.15 | F10: 23.5 | G10: 1.07 | J10: 4,288.0248 | K10: 4,288.02 | M10: E 13 | N10: 91,985.00 | O10: 87,020.62 | P10: 87,716.78 | R10: 71,947.59
B11: Förderschule | C11: E 13 | D11: 87,716.78 | E11: 1.09 | F11: 26.5 | G11: 1.06 | J11: 3,570.5081 | K11: 3,570.51 | M11: E 13 | N11: 91,985.00 | O11: 87,020.62 | P11: 87,716.78 | R11: 71,947.59
B12: Berufsbildende Schule – Theorie LK | C12: E 13 | D12: 86,323.14 | E12: 1.11 | F12: 24.5 | G12: 1.07 | J12: 3,906.8680 | K12: 3,906.87 | M12: E 13 | N12: 91,985.00 | O12: =N12*(100-6.9)/100 -> 85,638.04 | P12: 86,323.14 | R12: =Q12*(100-6.9)/100 -> 0.00
B13: Berufsbildende Schule – Fach LK | C13: E 12 | D13: 75,595.74 | E13: 1.11 | F13: 25.5 | G13: 1.07 | J13: 3,287.1895 | K13: 3,287.19 | L13: =AVERAGE(K12:K14) -> 3,282.20 | M13: E 12 | N13: 80,554.00 | O13: =N13*(100-6.9)/100 -> 74,995.77 | P13: 75,595.74 | R13: =Q13*(100-6.9)/100 -> 0.00
B14: Berufsbildende Schule – Fachpraxis LK | C14: E 9b | D14: 65,785.20 | E14: 1.11 | F14: 27.5 | G14: 1.07 | J14: 2,652.5473 | K14: 2,652.55 | M14: E 9b | N14: 70,100.00 | O14: =N14*(100-6.9)/100 -> 65,263.10 | P14: 65,785.20 | R14: =Q14*(100-6.9)/100 -> 0.00
A16: 4.2 | B16: Pädagogische Mitarbeiter: | M16: Parameter PM
B18: Pädagogische Mitarbeiter: | C18: Entgeltgruppe | D18: Jahresentgelt - 6,9 % ZVL + 0,8 % Sachkosten | F18: Wöchentliche Arbeitszeit | H18: Faktor S | I18: Abschlag | J18: Stundensatz | K18: Stundensatz kaufmännisch gerundet | M18: Entgeltgruppe | N18: Durchsnittliches Jahresentgelt | O18: - 6,9 % Zusatzversorgung | P18: + 0,8 % personalbezogene Sachkosten | R18: Rentenversicherungspflichtige Entgelt
C19: E9a | D19: =P19 -> 64,520.49 | F19: 39 | H19: 1.167 | I19: 0.8 | J19: =D19/F19*H19*I19 -> 1,544.5213 | K19: =J19 -> 1,544.52 | M19: E9a | N19: 67,660 | O19: =N19-R19*6.9/100 -> 64,008.42 | P19: =O19*(100+0.8)/100 -> 64,520.49 | R19: =N19/127.85*100 -> 52,921.39
A22: Abschnitt V (Nachrichtlich Schülerstunden nach Anlage 1 zu § 1 Abs. 1 Finanzhilfeverordnung)
K24: Lehr- personal | Q24: Zusatz- personal
B25: Grundschule | K25: 1.51 | Q25: ./.
B26: Hauptschule | K26: 2.16 | Q26: ./.
B27: Realschule | K27: 1.38 | Q27: ./.
B28: Oberschule | K28: 1.81 | Q28: ./.
B29: Gesamtschule Sek I | K29: 1.36 | Q29: ./.
B30: Gesamtschule Sek II | K30: 1.80 | Q30: ./.
B31: Gymnasium Sek I | K31: 1.36 | Q31: ./.
B32: Gymnasium Sek II | K32: 1.80 | Q32: ./.
B33: Förderschule LE | K33: 2.89 | Q33: ./.
B34: Förderschule ESE | K34: 3.90 | Q34: 1.81
B35: Förderschule Sprache | K35: 2.52 | Q35: ./.
B36: Förderschule GE | K36: 5.13 | Q36: 5.14
B37: Förderschule KME | K37: 4.26 | Q37: 3.35
B38: Förderschule Sehen | K38: 5.69 | Q38: 1.07
B39: Förderschule Hören | K39: 5.21 | Q39: ./.
A42: Abschnitt VI (Hinweise)
B43: Dieses Formular dient allein der Prognose der voraussichtlichen Finanzhilfe. Die tatsächliche Höhe wird ausschließlich durch die Abrechnung festgesetzt.
B44: Die Prognose basiert auf Ihren Eingaben. Maßgeblich für die tatsächliche Höhe ist der Mittelwert der Schülerzahlen (15.11. u. 15.03.) sowie die Ist-Stunden aus der amtlichen Statistik
B45: Die Erhöhungsbeträge nach § 150 Abs. 7 NSchG sowie die Bereinigung des Grunbetrages werden spitz abgerechnet und werden in diesem Prognosemodul nicht abgebildet.

Sheet Daten (hidden)
A1: Datenbasis für Prognoseblatt
B4: 1. Schulformen (Quelle für das Auswahlfeld unter 1.) | C4: Schulform (SF)
A5: 1 | B5: (noch keine Auswahl) | C5: =IF(Schulformauswahl=Daten!B5,1,IF(Schulformauswahl=Daten!B6,2,IF(Schulformauswahl=Daten!B7,3,IF(Schulformauswahl=Daten!B8,4,IF(Schulformauswahl=Daten!B9,5,IF(Schulformauswahl=Daten!B10,6,IF(Schulformauswahl=Daten!B11,7,IF(Schulformauswahl=Daten!B12,8)))))))) -> 1
A6: 2 | B6: Grund-, Haupt- oder Realschule
A7: 3 | B7: Grund- und/oder Oberschule
A8: 4 | B8: Gesamtschule
A9: 5 | B9: Gymnasium
A10: 6 | B10: Freie Waldorfschule ohne Förderschulzweig
A11: 7 | B11: Freie Waldorfschule mit Förderschulzweig
A12: 8 | B12: Förderschule
B15: 2. Zusatzversorgung | C15: ZV
A16: 1 | B16: nein | C16: =IF(ZV_J_N=Daten!B16,1,IF(ZV_J_N=Daten!B17,2)) -> 1
A17: 2 | B17: ja
B20: 3 ruhegehaltsfähigen Dienstbezüge | C20: rDB
A21: 1 | B21: nein | C21: =IF(rDB_J_N=Daten!B21,1,IF(rDB_J_N=Daten!B22,2)) -> 1
A22: 2 | B22: ja
